bitfinex/quotes_SOLUSD_20250917
["timestamp","ask_amount","ask_price","bid_price","bid_amount"]
[1758099322804,35.9996947,236.21,236.13,0.03]
[1758099322805,13.59559401,236.16,236.13,0.03]
[1758099322962,2.03492841,236.14,236.13,0.03]
[1758099323685,3.73153308,236.14,236.13,0.03]
[1758099324392,7.96630906,236.14,236.13,0.03]
[1758099326771,21.56190307,236.14,236.13,0.03]
[1758099327779,39.59559401,236.13,236.11,0.03]
[1758099327974,2.03492841,236.12,236.11,0.03]
[1758099328694,15.63052242,236.12,236.11,0.03]
[1758099328892,19.86565709,236.12,236.11,0.03]
[1758099329269,21.56247767,236.12,236.11,0.03]
[1758099332586,19.52754926,236.12,236.11,0.03]
[1758099332787,5.93195525,236.12,236.11,0.03]
[1758099332997,7.96688366,236.12,236.11,0.03]
[1758099333897,4.23513467,236.12,236.11,0.03]
[1758099336272,6.27006308,236.12,236.11,0.03]
[1758099336786,4.23513467,236.12,236.11,0.03]
[1758099336993,6.27006308,236.12,236.11,0.03]
[1758099338503,4.23513467,236.12,236.11,0.03]
[1758099338694,6.27006308,236.12,236.11,0.03]
[1758099341710,7.96681169,236.12,236.11,0.03]
[1758099344390,8.02681169,236.12,236.11,0.03]
[1758099347812,13.59559401,236.11,236.1,1e-08]
[1758099348119,15.63052242,236.11,236.1,1e-08]
[1758099348491,17.32748697,236.11,236.1,1e-08]
[1758099348888,21.56280101,236.11,236.1,1e-08]
[1758099351316,39.59559401,236.08,236.06,1e-08]
[1758099351494,15.63052242,236.07,236.06,1e-08]
[1758099352199,17.32777499,236.07,236.06,1e-08]
[1758099354126,21.56380667,236.07,236.06,1e-08]
[1758099361214,19.52887826,236.07,236.06,1e-08]
[1758099361403,5.93328425,236.07,236.06,1e-08]
[1758099361604,6.27096009,236.07,236.06,1e-08]
[1758099361818,5.54018594,236.07,236.06,1e-08]
[1758099362331,19.13577995,236.07,236.06,1e-08]
[1758099362628,20.83303253,236.07,236.06,1e-08]
[1758099365716,39.59559401,236.04,236.03,1e-08]
[1758099365902,40.89974827,236.04,236.03,1e-08]
[1758099366302,39.59559401,236.04,236.03,1e-08]
[1758099366503,40.89974827,236.04,236.03,1e-08]
[1758099366933,46.83393107,236.04,236.03,1e-08]
[1758099369317,33.23833706,236.04,236.03,1e-08]
[1758099369721,7.23833706,236.04,236.03,1e-08]
[1758099370307,5.54072433,236.04,236.03,1e-08]
[1758099370526,7.23804893,236.04,236.03,1e-08]
[1758099370929,5.54072433,236.04,236.03,1e-08]
[1758099371929,4.23657007,236.04,236.03,1e-08]
[1758099374224,4.23621113,236.06,236.03,1e-08]
[1758099375329,1.30415426,236.05,236.03,1e-08]
[1758099376312,4.23657007,236.04,236.03,1e-08]
[1758099378422,1.69710855,236.07,236.03,1.44631584]
[1758099378616,0.06,236.07,236.05,0.14216157]
[1758099378822,1.30415426,236.06,236.04,0.14216157]
[1758099379022,1.30415426,236.05,236.04,0.14216157]
[1758099379349,1.30415426,236.05,236.03,1e-08]
[1758099379645,4.23657007,236.04,236.03,1e-08]
[1758099380016,4.29605479,236.07,236.03,1.58847741]
[1758099380334,4.29605479,236.07,236.05,1.5884774]
[1758099380944,4.29605479,236.07,236.05,0.28432314]
[1758099381243,4.29605479,236.07,236.06,1.5884774]
[1758099381244,0.06,236.07,236.06,1.5884774]
[1758099381623,0.06,236.07,236.06,0.28432314]
[1758099392745,0.06,236.07,236.06,1.5884774]
[1758099393638,0.06,236.07,236.06,32.98432314]
[1758099405167,0.06,236.07,236.06,34.2884774]
[1758099405863,0.06,236.07,236.06,38.52468853]
[1758099406166,0.06,236.07,236.06,34.2884774]
[1758099411161,0.06,236.07,236.06,0.28432314]
[1758099411359,0.06,236.07,236.06,32.96432314]
[1758099414658,0.06,236.07,236.06,0.28432314]
[1758099414860,0.06,236.07,236.06,32.96432314]
[1758099420563,4.29603168,236.07,236.06,32.94432314]
[1758099426088,0.06,236.07,236.06,32.94432314]
[1758099426455,4.29603168,236.07,236.06,32.94432314]
[1758099427453,0.06,236.07,236.06,32.94432314]
[1758099427863,0.06,236.07,236.06,34.98186349]
[1758099428061,0.06,236.07,236.06,32.94432314]
[1758099436461,0.06,236.07,236.06,34.98186349]
[1758099440682,0.06,236.07,236.06,39.21807462]
[1758099441179,0.06,236.07,236.06,34.98186349]
[1758099442476,0.06,236.07,236.06,2.32186349]
[1758099442677,0.06,236.07,236.06,34.98186349]
[1758099444062,0.06,236.07,236.06,32.94432314]
[1758099444264,0.06,236.07,236.06,34.98186349]
[1758099445077,0.06,236.07,236.06,2.32186349]
[1758099445277,0.06,236.07,236.06,34.96186349]
[1758099450496,0.06,236.07,236.06,32.92432314]
[1758099450694,0.06,236.07,236.06,34.96186349]
[1758099456688,0.06,236.07,236.06,32.92432314]
[1758099456898,0.06,236.07,236.06,34.96186349]
[1758099457271,4.29603168,236.07,236.06,0.28432314]
[1758099457483,4.29603168,236.07,236.06,32.92432314]
[1758099463311,0.06,236.07,236.06,32.92432314]
[1758099464707,0.06,236.07,236.06,34.96186349]
[1758099465994,0.06,236.07,236.06,32.92432314]
[1758099467701,4.29603168,236.07,236.06,32.92432314]
[1758099469186,4.29603168,236.07,236.06,0.28432314]
[1758099469393,4.29603168,236.07,236.06,32.92432314]
[1758099469602,0.06,236.07,236.06,32.92432314]
[1758099470806,0.06,236.07,236.06,34.96186349]
[1758099471283,0.06,236.07,236.06,32.92432314]
[1758099471488,0.06,236.07,236.06,34.96186349]
[1758099472796,0.06,236.07,236.06,32.92432314]
[1758099472995,0.06,236.07,236.06,34.96186349]
[1758099474710,0.06,236.07,236.06,32.92432314]
[1758099474913,0.06,236.07,236.06,34.96186349]
[1758099478188,0.06,236.07,236.06,39.19807462]
[1758099479006,0.06,236.07,236.06,39.48239776]
[1758099481406,0.06,236.1,236.09,26.56864628]
[1758099481611,0.06,236.1,236.09,61.22618663]
[1758099482317,0.06,236.1,236.09,76.94130518]
[1758099482902,0.06,236.12,236.1,14.16424029]
[1758099483120,0.06,236.12,236.11,34.94186349]
[1758099483423,0.06,236.12,236.11,39.17717753]
[1758099483636,0.06,236.12,236.11,40.87299099]
[1758099484409,0.06,236.12,236.11,44.25751255]
[1758099485814,0.06,236.12,236.11,43.52229134]
[1758099486022,0.06,236.12,236.11,36.04461731]
[1758099486314,0.06,236.12,236.11,34.49096542]
[1758099486912,0.06,236.12,236.11,36.18685078]
[1758099489016,0.06,236.15,236.14,26.28432314]
[1758099489302,0.06,236.15,236.14,60.47096542]
[1758099489831,0.06,236.15,236.14,64.70417026]
[1758099490351,0.06,236.15,236.14,77.62841036]
[1758099491150,0.06,236.15,236.14,77.6299815]
[1758099491430,0.06,236.24,236.16,1.58664228]
[1758099491608,0.06,236.24,236.16,34.18664228]
[1758099493213,0.06,236.24,236.16,38.42105962]
[1758099493916,4.23322439,236.23,236.16,4.51874048]
[1758099494110,4.29312009,236.24,236.16,38.70538276]
[1758099494630,4.23320864,236.23,236.16,37.40306362]
[1758099494830,4.23320864,236.23,236.16,38.70538276]
[1758099495730,0.06,236.24,236.16,38.70538276]
[1758099496920,4.29299845,236.24,236.16,38.70538276]
[1758099498652,4.23317548,236.23,236.16,38.70538276]
[1758099498938,0.06,236.24,236.16,1.58664228]
[1758099498939,4.23381362,236.2,236.16,1.58664228]
[1758099499128,4.23381362,236.2,236.16,34.18664228]
[1758099499634,4.23381362,236.2,236.16,32.88432314]
[1758099499816,4.29381362,236.2,236.16,34.18664228]
[1758099500234,4.29381362,236.2,236.16,32.88432314]
[1758099500631,4.29381362,236.2,236.16,34.18664228]
[1758099500826,4.23388807,236.19,236.16,1.58664228]
[1758099501029,4.23388807,236.19,236.16,34.18664228]
[1758099501741,0.06,236.2,236.16,34.18664228]
[1758099502236,4.29376514,236.2,236.16,34.18664228]
[1758099503520,0.06,236.2,236.16,34.18664228]
[1758099503922,4.29371999,236.2,236.16,34.18664228]
[1758099504528,0.06,236.2,236.16,32.88432314]
[1758099504729,0.06,236.2,236.16,34.18664228]
[1758099504944,0.06,236.2,236.16,1.58664228]
[1758099505131,0.06,236.2,236.16,34.18664228]
[1758099508043,0.06,236.2,236.16,38.70538276]
[1758099514759,0.06,236.2,236.19,26.28432314]
[1758099514958,0.06,236.2,236.19,60.45096542]
[1758099516742,0.06,236.2,236.19,32.10484492]
[1758099516940,0.06,236.2,236.19,64.68484492]
[1758099524174,0.06,236.2,236.19,60.45096542]
[1758099524354,0.06,236.2,236.19,64.68484492]
[1758099525387,0.06,236.2,236.19,61.85046648]
[1758099525687,0.06,236.2,236.19,56.64118992]
[1758099526198,0.06,236.2,236.19,58.33642842]
[1758099526381,0.06,236.2,236.19,63.54570498]
[1758099526580,0.06,236.2,236.19,58.33642842]
[1758099527085,0.06,236.2,236.19,57.03410928]
[1758099527258,0.06,236.2,236.19,58.33642842]
[1758099527887,0.06,236.2,236.19,21.52254892]
[1758099528178,0.06,236.2,236.19,40.38008342]
[1758099528387,0.06,236.2,236.19,7.80008342]
[1758099528568,0.06,236.2,236.19,38.68484492]
[1758099528767,0.06,236.2,236.19,6.10484492]
[1758099528978,0.06,236.2,236.19,38.68484492]
[1758099531776,0.06,236.2,236.19,0.56864628]
[1758099531952,0.06,236.2,236.19,0.28432314]
[1758099532153,0.06,236.2,236.19,32.86432314]
[1758099537005,0.06,236.2,236.19,32.89432314]
[1758099537494,5.59601939,236.2,236.19,0.03]
[1758099537699,5.59601939,236.2,236.19,0.17216157]
[1758099537993,5.59601939,236.2,236.19,0.03]
[1758099538171,5.59601939,236.2,236.19,32.61]
[1758099540668,5.59601939,236.2,236.19,0.03]
[1758099541991,19.1916134,236.2,236.19,0.03]
[1758099543780,4.29370025,236.2,236.19,0.03]
[1758099543994,5.59601939,236.2,236.19,0.03]
[1758099547801,6.32930308,236.2,236.19,0.03]
[1758099553412,4.29370025,236.2,236.19,0.03]
[1758099553580,6.32930308,236.2,236.19,0.03]
[1758099555105,4.29370025,236.2,236.19,0.03]
[1758099555307,19.92489709,236.2,236.19,0.03]
[1758099555608,32.64673413,236.2,236.19,0.03]
[1758099558808,19.92489709,236.2,236.19,0.03]
[1758099560921,32.64673413,236.2,236.19,0.03]
[1758099571826,30.6111313,236.2,236.19,0.03]
[1758099572027,32.64673413,236.2,236.19,0.03]
[1758099572730,30.6111313,236.2,236.19,0.03]
[1758099572915,32.64673413,236.2,236.19,0.03]
[1758099577260,33.70615419,236.2,236.19,0.03]
[1758099578545,33.70615419,236.2,236.16,0.03]
[1758099578754,41.63119684,236.16,236.15,0.03]
[1758099579262,43.32787347,236.16,236.15,0.03]
[1758099579555,44.38744001,236.16,236.15,0.03]
[1758099579754,48.62185735,236.16,236.15,0.03]
[1758099581236,6.27002017,236.16,236.15,0.03]
[1758099582145,19.86561418,236.16,236.15,0.03]
[1758099583658,20.92511185,236.16,236.15,0.03]
[1758099583963,19.86561418,236.16,236.15,0.03]
[1758099584363,17.83001135,236.16,236.15,0.03]
[1758099584565,19.86561418,236.16,236.15,0.03]
[1758099585347,21.56214689,236.16,236.15,0.03]
[1758099592070,21.62214689,236.16,236.15,0.03]
[1758099592772,22.68171343,236.16,236.15,0.03]
[1758099593864,20.6461106,236.16,236.15,0.03]
[1758099594066,22.68171343,236.16,236.15,0.03]
[1758099594951,20.6461106,236.16,236.15,0.03]
[1758099595159,22.68171343,236.16,236.15,0.03]
[1758099595858,22.68178231,236.16,236.15,0.03]
[1758099596876,39.59559401,236.13,236.12,0.03]
[1758099597085,41.63119684,236.13,236.12,0.03]
[1758099597556,43.32794544,236.13,236.12,0.03]
[1758099598481,47.56290076,236.13,236.12,0.03]
[1758099600188,47.56290076,236.13,236.06,0.03]
[1758099600189,80.38480036,236.13,236.06,0.03]
[1758099600363,1.059747,236.12,236.06,0.03]
[1758099600681,2.03560283,236.11,236.06,0.31432314]
[1758099600876,3.7324954,236.11,236.06,0.31432314]
[1758099601178,2.03560283,236.07,236.06,0.03]
[1758099601365,15.63119684,236.07,236.06,0.03]
[1758099602384,19.86722852,236.07,236.06,0.03]
[1758099603263,17.83162569,236.07,236.06,0.03]
[1758099603478,19.86722852,236.07,236.06,0.03]
[1758099604667,21.56440908,236.07,236.06,0.03]
[1758099606185,19.52880625,236.07,236.06,0.03]
[1758099606485,21.56440908,236.07,236.06,0.03]
[1758099607765,20.83309733,236.07,236.06,0.03]
[1758099609665,39.59559401,236.05,236.04,1e-08]
[1758099609887,41.96000821,236.05,236.04,1e-08]
[1758099610384,47.89393949,236.05,236.04,1e-08]
[1758099610967,48.17826263,236.05,236.04,1e-08]
[1758099611169,47.11813951,236.05,236.04,1e-08]
[1758099611694,39.59559401,236.01,236.0,1e-08]
[1758099611893,40.89988509,236.01,236.0,1e-08]
[1758099612383,45.13699368,236.01,236.0,1e-08]
[1758099613089,46.83475052,236.01,236.0,1e-08]
[1758099613987,46.83475052,236.01,235.91,0.2]
[1758099613988,57.42752201,236.01,235.91,0.2]
[1758099614187,14.89988509,235.98,235.91,0.2]
[1758099614388,19.13753234,235.98,235.91,0.2]
[1758099614777,20.83543331,235.98,235.91,0.2]
[1758099618465,19.53114223,235.98,235.91,0.2]
[1758099618693,20.83543331,235.98,235.91,0.2]
[1758099626379,20.83543331,235.98,235.96,1e-08]
[1758099626584,1.30429108,235.97,235.96,1e-08]
[1758099627193,3.00233621,235.97,235.96,1e-08]
[1758099628301,7.24016305,235.97,235.96,1e-08]
[1758099631183,5.93587197,235.97,235.96,1e-08]
[1758099632002,30.23782684,235.97,235.96,1e-08]
[1758099639307,31.54211792,235.97,235.96,1e-08]
[1758099641409,30.23782684,235.97,235.96,1e-08]
[1758099641716,31.54211792,235.97,235.96,1e-08]
[1758099643502,45.19771193,235.97,235.96,1e-08]
[1758099644414,46.89575706,235.97,235.96,1e-08]
[1758099647416,47.1800802,235.97,235.96,1e-08]
[1758099648923,47.03791863,235.97,235.96,1e-08]
[1758099651813,47.1800802,235.97,235.96,1e-08]
[1758099652115,47.03791863,235.97,235.96,1e-08]
[1758099653110,48.09846477,235.97,235.96,1e-08]
[1758099655114,80.80062634,235.97,235.96,1e-08]
[1758099655507,46.93633526,235.97,235.96,1e-08]
[1758099655711,80.80062634,235.97,235.96,1e-08]
[1758099664935,80.80063005,235.97,235.96,1e-08]
[1758099665323,79.7400802,235.97,235.96,1e-08]
[1758099665526,80.80063005,235.97,235.96,1e-08]
[1758099666229,79.7400802,235.97,235.96,1e-08]
[1758099666839,46.93633897,235.97,235.96,1e-08]
[1758099667022,47.1800802,235.97,235.96,1e-08]
[1758099667816,47.91607211,235.97,235.96,1e-08]
[1758099670219,51.01696626,235.97,235.96,1e-08]
[1758099670414,48.97668327,235.97,235.96,1e-08]
[1758099671345,47.91607211,235.97,235.96,1e-08]
[1758099680348,45.87578912,235.97,235.96,1e-08]
[1758099680647,47.91607211,235.97,235.96,1e-08]
[1758099682355,48.97668327,235.97,235.96,1e-08]
[1758099683667,47.91607211,235.97,235.96,1e-08]
[1758099685164,48.97665261,235.97,235.96,1e-08]
[1758099686358,51.0169356,235.97,235.96,1e-08]
[1758099687066,48.97665261,235.97,235.96,1e-08]
[1758099687943,47.91607211,235.97,235.96,1e-08]
[1758099688463,48.97665261,235.97,235.96,1e-08]
[1758099688963,47.91607211,235.97,235.96,1e-08]
[1758099689272,49.9563551,235.97,235.96,1e-08]
[1758099691166,49.9563551,235.97,235.82,14.49835125]
[1758099691167,26.0,235.89,235.8,0.28432314]
[1758099691366,2.04028299,235.85,235.8,0.28432314]
[1758099691568,2.04028299,235.85,235.78,72.86148155]
[1758099691569,2.04028299,235.86,235.79,2.32460613]
[1758099692057,2.04028299,235.85,235.79,2.32460613]
[1758099692265,14.77886603,235.86,235.79,2.32460613]
[1758099692564,4.23998304,235.85,235.79,2.32460613]
[1758099692861,4.23998304,235.85,235.81,0.14216157]
[1758099694660,6.28026603,235.85,235.81,0.14216157]
[1758099695043,6.28026603,235.85,235.79,2.32460613]
[1758099695244,6.28026603,235.85,235.79,0.28432314]
[1758099695448,6.28026603,235.85,235.81,0.28432314]
[1758099695648,4.23982568,235.86,235.84,0.28432314]
[1758099695864,26.0,235.89,235.86,0.14216157]
[1758099696066,2.04028299,235.88,235.86,2.18244456]
[1758099696448,2.04028299,235.88,235.8,0.28432314]
[1758099696771,10.59742729,235.91,235.86,2.04028299]
[1758099697141,23.33492862,235.91,235.86,0.28432314]
[1758099697555,10.59742729,235.91,235.86,0.14216157]
[1758099697762,14.83633195,235.91,235.86,0.28432314]
[1758099697947,2.04028299,235.9,235.86,0.28432314]
[1758099698141,2.04028299,235.9,235.85,0.28432314]
[1758099698760,4.23926406,235.89,235.85,0.28432314]
[1758099699065,4.23926406,235.89,235.84,0.28432314]
[1758099699066,14.83742421,235.89,235.84,0.28432314]
[1758099699275,42.8777072,235.89,235.84,0.28432314]
[1758099699448,2.04028299,235.88,235.84,0.14216157]
[1758099699965,14.83868232,235.87,235.84,0.14216157]
[1758099700371,16.87896531,235.87,235.81,0.14216157]
[1758099700669,14.83868232,235.87,235.81,0.14216157]
[1758099700974,4.23962352,235.87,235.81,2.18244456]
[1758099701275,4.23962352,235.87,235.81,0.14216157]
[1758099701494,4.23962352,235.87,235.83,0.28432314]
[1758099702961,30.23943534,235.89,235.84,0.14216157]
[1758099703584,4.23943534,235.89,235.82,0.28432314]
[1758099703786,4.23943534,235.89,235.82,2.32460613]
[1758099704606,4.23943534,235.89,235.84,0.28432314]
[1758099705374,6.27971833,235.89,235.84,0.28432314]
[1758099705598,6.27971833,235.89,235.85,0.28432314]
[1758099705886,4.23943534,235.89,235.85,2.18244456]
[1758099706790,4.23943534,235.89,235.85,0.14216157]
[1758099707976,4.23943534,235.89,235.84,0.28432314]
[1758099708867,4.23943534,235.89,235.84,0.14216157]
[1758099709494,4.23943534,235.89,235.85,0.28432314]
[1758099713394,4.23943534,235.89,235.85,0.14216157]
[1758099713696,4.23943534,235.89,235.84,0.17216157]
[1758099713697,8.35000132,235.89,235.84,0.03]
[1758099714396,8.35000132,235.89,235.85,0.28432314]
[1758099715095,2.04028299,235.88,235.84,0.03]
[1758099715299,2.04028299,235.88,235.85,0.14216157]
[1758099716897,4.23962352,235.87,235.85,0.14216157]
[1758099721806,4.23962352,235.87,235.85,2.18244456]
[1758099722813,4.23944378,235.88,235.85,2.18244456]
[1758099724910,2.07028299,235.89,235.86,2.04028299]
[1758099725478,2.07028299,235.89,235.86,34.56028299]
[1758099725878,6.30955026,235.89,235.86,34.56028299]
[1758099727608,6.30955026,235.89,235.86,32.52]
[1758099728105,6.30955026,235.89,235.86,33.8260615]
[1758099728493,6.30955026,235.89,235.86,32.52]
[1758099728690,18.21377191,235.89,235.84,0.03]
[1758099729009,40.83742742,235.89,235.85,1.3060615]
[1758099729302,40.83742742,235.89,235.86,1.3060615]
[1758099729303,1.69847774,235.88,235.86,1.3060615]
[1758099731010,5.93797623,235.88,235.86,1.3060615]
[1758099732094,14.83679524,235.9,235.86,1.3060615]
[1758099732997,14.90165551,235.89,235.84,0.03]
[1758099733308,14.90165551,235.89,235.85,32.52]
[1758099733803,14.90165551,235.89,235.84,0.03]
[1758099734005,27.64077948,235.89,235.84,0.03]
[1758099734191,4.23944378,235.88,235.84,0.03]
[1758099734897,14.83805324,235.88,235.84,0.03]
[1758099735913,16.14411474,235.88,235.84,0.03]
[1758099736611,14.83805324,235.88,235.84,0.03]
[1758099738412,16.14411474,235.88,235.84,0.03]
[1758099739606,14.83805324,235.88,235.84,0.03]
[1758099740598,16.14411474,235.88,235.84,0.03]
[1758099741807,14.83805324,235.88,235.84,0.03]
[1758099742387,14.83805324,235.88,235.84,1.3360615]
[1758099742887,14.83805324,235.88,235.84,0.03]
[1758099743095,14.83805324,235.88,235.84,1.3360615]
[1758099743293,19.39336796,235.88,235.84,0.03]
[1758099746322,14.83805324,235.88,235.84,0.03]
[1758099747314,14.83805324,235.88,235.84,1.3360615]
[1758099748520,14.83805324,235.88,235.84,33.8560615]
[1758099749994,4.23944378,235.88,235.85,1.3060615]
[1758099750226,4.23944378,235.88,235.87,1.3060615]
[1758099751110,4.23908435,235.9,235.87,1.3060615]
[1758099752109,0.06,235.91,235.89,1.3060615]
[1758099752309,0.06,235.91,235.9,1.3060615]
[1758099752506,0.06,235.91,235.9,1.44822307]
[1758099761223,4.29890466,235.91,235.89,32.52]
[1758099761524,4.29890466,235.91,235.9,32.5]
[1758099763624,4.29890466,235.91,235.9,33.8060615]
[1758099764730,4.29890466,235.91,235.9,1.3060615]
[1758099764916,4.29890466,235.91,235.9,33.8060615]
[1758099765617,0.06,235.91,235.9,33.8060615]
[1758099771829,0.06,235.91,235.9,34.09038464]
[1758099773038,0.06,235.91,235.9,38.32946899]
[1758099773835,0.06,235.91,235.9,38.61379213]
[1758099775825,0.06,235.94,235.9,49.21150302]
[1758099776133,0.06,235.94,235.93,33.09895378]
[1758099776306,0.06,235.94,235.93,65.59895378]
[1758099777243,0.06,235.94,235.93,60.37470778]
[1758099777935,0.06,235.94,235.93,69.83749911]
[1758099778249,0.06,235.94,235.93,71.53475168]
[1758099778855,0.06,235.94,235.93,85.13034569]
[1758099782449,0.06,235.94,235.93,47.40609969]
[1758099782631,0.06,235.94,235.93,79.88609969]
[1758099785726,0.06,235.94,235.93,1.59038464]
[1758099785927,0.06,235.94,235.93,34.07038464]
[1758099786743,0.06,235.94,235.93,1.59038464]
[1758099786954,0.06,235.94,235.93,34.07038464]
[1758099789732,0.06,235.94,235.93,34.80313746]
[1758099790352,0.06,235.94,235.93,39.32600593]
[1758099790976,0.06,235.94,235.93,41.36482025]
[1758099791254,0.06,235.96,235.94,14.16424029]
[1758099791563,0.06,235.96,235.95,37.12627492]
[1758099791927,0.06,236.0,235.99,26.56864628]
[1758099792127,0.06,236.0,235.99,64.42720143]
[1758099793348,0.06,236.0,235.99,78.92052229]
[1758099796639,0.06,236.0,235.99,82.78721917]
[1758099797650,0.06,236.0,235.99,162.28721917]
[1758099797838,0.06,236.0,235.99,161.86347241]
[1758099799053,0.06,236.0,235.99,163.94228673]
[1758099799727,4.29509671,236.13,236.01,15.91873147]
[1758099799926,4.29509671,236.13,236.01,48.37873147]
[1758099801350,4.29509671,236.13,236.01,132.4001632]
[1758099802236,0.06,236.13,236.01,132.4001632]
[1758099802438,0.06,236.13,236.09,0.28432314]
[1758099802642,0.06,236.13,236.12,2.32313746]
[1758099802839,0.06,236.13,236.12,34.78313746]
[1758099803057,0.06,236.13,236.12,48.0322058]
[1758099803258,0.06,236.13,236.12,52.26734047]
[1758099803557,0.06,236.13,236.12,65.86293448]
[1758099803761,0.06,236.13,236.12,33.40293448]
[1758099804059,0.06,236.13,236.12,65.86293448]
[1758099806357,0.06,236.13,236.12,66.28644794]
[1758099807037,0.1,236.15,236.14,13.87991715]
[1758099807239,0.1,236.15,236.14,49.0865322]
[1758099809857,0.1,236.15,236.14,132.82130818]
[1758099810060,0.06,236.16,236.15,14.16424029]
[1758099810240,0.06,236.19,236.17,26.56864628]
[1758099810444,0.06,236.19,236.17,61.4708844]
[1758099811345,0.06,236.19,236.17,79.30071645]
[1758099813037,0.06,236.19,236.17,80.99595495]
[1758099813238,0.06,236.19,236.17,48.55595495]
[1758099813435,0.06,236.19,236.17,80.99595495]
[1758099813655,0.06,236.19,236.17,160.49595495]
[1758099813869,0.06,236.19,236.17,160.07253115]
[1758099816650,0.06,236.19,236.17,125.59371683]
[1758099816850,0.06,236.19,236.17,160.07253115]
[1758099817059,0.06,236.19,236.17,127.51515565]
[1758099817268,0.06,236.19,236.17,97.25613154]
[1758099817474,0.06,236.19,236.17,95.56089304]
[1758099817773,0.06,236.19,236.17,128.14305461]
[1758099819670,0.06,236.19,236.17,48.64305461]
[1758099820266,0.06,236.19,236.17,16.20305461]
[1758099820468,0.06,236.19,236.17,48.64305461]
[1758099827477,0.06,236.19,236.17,52.87729265]
[1758099827856,0.06,236.19,236.17,20.43729265]
[1758099828175,0.06,236.19,236.17,52.85729265]
[1758099835573,0.06,236.21,236.19,0.28432314]
[1758099835774,0.06,236.21,236.19,130.16186893]
[1758099835971,0.06,236.21,236.2,0.28432314]
[1758099836293,0.06,236.21,236.2,4.64627492]
[1758099836677,0.06,236.23,236.21,0.28432314]
[1758099837001,0.06,236.23,236.21,37.06627492]
[1758099838063,0.06,236.23,236.21,41.29979593]
[1758099840269,0.06,236.23,236.21,120.79979593]
[1758099841893,0.06,236.24,236.23,39.87991715]
[1758099842191,0.06,236.24,236.23,74.33873147]
[1758099842693,0.06,236.26,236.23,154.12305461]
[1758099842890,0.06,236.26,236.25,16.20305461]
[1758099843189,0.06,236.26,236.25,48.62305461]
[1758099843392,4.23041676,236.39,236.36,0.28432314]
[1758099843593,4.23041676,236.39,236.38,0.28432314]
[1758099844291,14.80478828,236.41,236.38,0.28432314]
[1758099844472,14.80478828,236.41,236.39,32.42]
[1758099847473,14.80478828,236.41,236.37,0.14216157]
[1758099847800,14.80478828,236.41,236.3,4.51614066]
[1758099847801,2.03881432,236.38,236.24,0.28432314]
[1758099848004,2.03881432,236.31,236.26,0.28432314]
[1758099848298,2.03881432,236.31,236.28,0.14216157]
[1758099848804,2.03881432,236.29,236.25,0.14216157]
[1758099848979,2.03881432,236.29,236.27,0.14216157]
[1758099849695,4.2322668,236.28,236.27,0.14216157]
[1758099850006,4.23205252,236.3,236.27,0.14216157]
[1758099851078,4.23205252,236.3,236.29,0.28432314]
[1758099851300,1.30179154,236.32,236.29,0.28432314]
[1758099852777,4.2317295,236.31,236.29,0.28432314]
[1758099853694,14.81049986,236.32,236.29,0.28432314]
[1758099853881,16.1122914,236.32,236.3,32.4]
[1758099854080,14.81049986,236.32,236.3,32.4]
[1758099854281,16.1122914,236.32,236.3,32.4]
[1758099854902,14.80792012,236.36,236.3,32.4]
[1758099855105,1.30179154,236.32,236.3,32.4]
[1758099855982,4.2317295,236.31,236.3,32.4]
[1758099863590,14.81105326,236.31,236.3,32.4]
[1758099864227,16.1128448,236.31,236.26,0.14216157]
[1758099864387,14.81105326,236.31,236.21,0.03]
[1758099864713,1.30179154,236.28,236.23,0.14216157]
[1758099864918,1.30179154,236.27,236.23,0.14216157]
[1758099865097,1.30179154,236.26,236.24,32.4]
[1758099865301,4.23262507,236.26,236.24,32.4]
[1758099868111,5.53441661,236.26,236.24,32.4]
[1758099868421,1.30179154,236.25,236.21,0.17216157]
[1758099868635,1.30179154,236.23,236.22,32.4]
[1758099869409,1.30179154,236.24,236.22,32.4]
[1758099869613,4.23316259,236.23,236.22,32.4]